bitfinex/quotes_ETHUSD_20220215
["timestamp","ask_amount","ask_price","bid_price","bid_amount"]
[1644916938345,1.81095,3083.6,3082.9,0.3]
[1644916938745,1.6219714,3083.6,3082.9,0.3]
[1644916938946,0.81103,3083.5,3082.9,0.3]
[1644916939146,0.81103,3083.5,3082.8,0.81101]
[1644916939347,1.81103,3083.5,3082.8,0.81101]
[1644916939548,0.81103,3083.5,3082.8,0.81101]
[1644916939747,0.81103,3083.5,3082.9,0.70787243]
[1644916939748,2.6220498,3083.5,3082.9,0.70787243]
[1644916939994,2.6220498,3083.5,3082.6,1.622]
[1644916939995,2.6220498,3083.5,3082.6,1.922]
[1644916940195,0.81103,3083.3,3082.7,0.70785951]
[1644916940395,1.27803,3083.3,3082.7,1.51890951]
[1644916940592,1.27803,3083.3,3082.3,0.00951159]
[1644916940593,3.69935184,3083.3,3082.3,0.00951159]
[1644916940797,3.69935184,3083.3,3082.4,0.70826702]
[1644916940993,23.82081584,3083.3,3082.4,0.70826702]
[1644916941393,23.82081584,3083.3,3082.5,0.8111]
[1644916941593,23.82081584,3083.3,3082.6,1.51935702]
[1644916941594,24.63188254,3083.3,3082.6,1.51935702]
[1644916941793,24.63188254,3083.3,3082.5,0.8111]
[1644916941794,1.46135904,3082.5,3082.3,0.00951153]
[1644916941994,1.46135904,3082.5,3081.5,7.43]
[1644916942192,1.46135904,3082.5,3081.6,0.70868815]
[1644916942394,1.46135904,3082.5,3082.3,0.00951151]
[1644916942598,1.46135904,3082.5,3082.3,1.00776412]
[1644916942792,2.27256904,3082.5,3082.4,0.7108318]
[1644916944545,2.27256904,3082.5,3082.1,0.92838116]
[1644916944745,2.27256904,3082.5,3082.3,0.00950441]
[1644916944946,3.08386114,3082.5,3082.4,0.7108318]
[1644916945148,4.74292615,3082.5,3082.4,0.7108318]
[1644916946747,4.08386114,3082.5,3082.0,0.88243929]
[1644916946946,4.08386114,3082.5,3082.3,0.00950602]
[1644916947145,4.08386114,3082.5,3082.4,0.71145459]
[1644916947348,5.21026811,3082.5,3082.4,0.71145459]
[1644916947795,4.39897601,3082.5,3082.4,0.71145459]
[1644916949597,2.12076601,3082.5,3082.4,0.71145459]
[1644916949794,1.46135904,3082.5,3082.4,1.01145459]
[1644916949994,1.46135904,3082.5,3082.4,0.71145459]
[1644916950196,1.46135904,3082.5,3082.4,1.01145459]
[1644916950599,6.41137816,3083.4,3082.5,7.0]
[1644916950794,0.13837816,3083.4,3082.6,4.16178165]
[1644916950993,0.13837816,3083.4,3082.6,1.52872459]
[1644916950994,0.64084015,3083.3,3082.6,1.52872459]
[1644916951245,0.64084015,3083.3,3082.7,1.01768459]
[1644916951445,0.64084015,3083.3,3082.8,0.71768459]
[1644916951646,0.64084015,3083.3,3082.8,1.83393477]
[1644916951845,1.45186015,3083.2,3082.9,0.71145459]
[1644916952046,0.64072651,3083.1,3083.0,0.00623]
[1644916952650,0.64072651,3083.1,3083.0,0.71768459]
[1644916952950,0.64072651,3083.1,3083.0,0.71145459]
[1644916953147,0.81109,3083.0,3082.8,0.00623]
[1644916953348,0.81109,3083.0,3082.9,0.72942961]
[1644916953548,1.45189577,3083.0,3082.9,0.72942961]
[1644916953749,1.45189577,3083.0,3082.9,1.79558729]
[1644916953948,0.81109,3083.0,3082.9,1.79558729]
[1644916954147,1.451898,3083.0,3082.9,0.72942961]
[1644916956200,1.14158065,3083.6,3082.9,0.72942961]
[1644916956403,0.64082877,3083.5,3082.9,1.84039961]
[1644916956605,0.64082877,3083.5,3083.0,0.72942961]
[1644916957005,0.64082877,3083.5,3083.0,1.54040961]
[1644916957204,0.64082877,3083.5,3083.1,0.72942961]
[1644916957405,0.59776782,3083.5,3083.1,0.72942961]
[1644916957605,0.59776782,3083.5,3083.1,1.54039961]
[1644916957606,0.81096,3083.4,3083.1,1.54039961]
[1644916957804,0.81096,3083.4,3083.1,0.81097]
[1644916958404,0.81096,3083.4,3083.1,1.62197]
[1644916958604,0.81096,3083.4,3083.2,0.811]
[1644916960450,0.81096,3083.4,3083.1,0.81103]
[1644916962496,0.81096,3083.4,3083.1,1.62204]
[1644916962694,0.81096,3083.4,3083.2,0.81104]
[1644916962894,0.81096,3083.4,3082.9,0.00622818]
[1644916963300,0.81096,3083.4,3082.5,0.00622818]
[1644916963301,0.81116,3083.1,3082.5,0.00622818]
[1644916963898,0.81116,3083.1,3082.6,1.62233]
[1644916964094,0.80196002,3083.1,3082.7,0.00622818]
[1644916964794,1.80196002,3083.1,3082.7,0.00622818]
[1644916965596,1.80196002,3083.1,3082.7,0.81734818]
[1644916965798,0.80196002,3083.1,3082.8,0.00622818]
[1644916965994,1.80196002,3083.1,3082.8,0.00622818]
[1644916966448,0.80196002,3083.1,3082.8,0.00622818]
[1644916966648,1.80196002,3083.1,3082.8,0.00622818]
[1644916966852,0.80196002,3083.1,3082.8,0.00622818]
[1644916967050,1.80196002,3083.1,3082.8,0.00622818]
[1644916967251,1.80196002,3083.1,3082.8,1.62837818]
[1644916967452,0.80196002,3083.1,3082.8,1.62837818]
[1644916967651,1.80196002,3083.1,3082.8,1.62837818]
[1644916967852,0.80196002,3083.1,3082.8,1.62837818]
[1644916969254,0.467,3083.0,3082.8,0.00622818]
[1644916969453,0.467,3083.0,3082.4,0.00622818]
[1644916969454,0.00617909,3082.6,3082.4,0.00622818]
[1644916969652,1.28446559,3082.6,3082.2,0.81751818]
[1644916969851,1.28446559,3082.6,3082.3,0.00622818]
[1644916970093,1.28355674,3082.6,3082.3,0.0157345]
[1644916970294,1.28355674,3082.6,3082.3,0.00950632]
[1644916970594,1.28355674,3082.6,3082.3,0.0157345]
[1644916970796,0.81129,3082.5,3082.3,0.00622818]
[1644916970997,1.6225365,3082.5,3082.3,0.00622818]
[1644916971297,2.6225365,3082.5,3082.3,0.01573448]
[1644916971696,1.6225365,3082.5,3082.3,0.01573448]
[1644916972093,1.6225365,3082.5,3082.3,0.00622818]
[1644916972494,1.6225365,3082.5,3082.2,0.00950644]
[1644916972695,2.6225365,3082.5,3082.2,0.00950644]
[1644916972894,1.6225,3082.4,3082.2,0.00950644]
[1644916973097,2.4337749,3082.4,3082.2,0.00950644]
[1644916973295,2.4337749,3082.4,3082.1,0.00622818]
[1644916973296,3.4337749,3082.4,3082.1,0.00622818]
[1644916973498,0.81131,3082.3,3082.1,0.01572398]
[1644916973746,0.81131,3082.3,3082.1,0.0094958]
[1644916974347,0.81131,3082.3,3082.1,0.01572398]
[1644916974552,1.62264,3082.2,3082.1,0.00622818]
[1644916974749,1.62264,3082.2,3082.0,0.00949607]
[1644916975650,0.811337,3082.2,3081.7,0.00622818]
[1644916975850,0.811337,3082.2,3081.9,0.00949634]
[1644916976249,0.811337,3082.2,3081.9,0.01572452]
[1644916976449,0.81132,3082.1,3081.9,0.01572452]
[1644916976851,0.81132,3082.1,3081.9,0.00622818]
[1644916977603,0.47317909,3082.6,3082.0,1.49122833]
[1644916977801,0.69265188,3082.5,3082.1,0.68631651]
[1644916978004,0.69265188,3082.5,3082.2,0.68631651]
[1644916978200,0.00617909,3082.6,3082.3,0.68008833]
[1644916978401,0.00617909,3082.6,3082.4,1.80924975]
[1644916978604,0.81732909,3082.6,3082.5,0.68008833]
[1644916978802,1.51778699,3082.6,3082.5,0.68008833]
[1644916980005,2.51778699,3082.6,3082.5,0.68008833]
[1644916980205,1.51778699,3082.6,3082.5,0.7617102]
[1644916980404,2.51778699,3082.6,3082.5,0.7617102]
[1644916980605,1.51778699,3082.6,3082.5,0.7617102]
[1644916980807,2.51778699,3082.6,3082.5,0.7617102]
[1644916984050,0.70663699,3082.6,3082.5,0.7617102]
[1644916984250,0.00617909,3082.6,3082.5,0.7617102]
[1644916984450,0.70657973,3082.6,3082.5,0.7617102]
[1644916985098,0.00617909,3082.6,3082.5,0.7617102]
[1644916986305,0.00617909,3082.6,3082.5,0.7542962]
[1644916986505,0.70644003,3082.6,3082.5,0.7542962]
[1644916987303,0.00617909,3082.6,3082.5,4.13084996]
[1644916987602,0.00617909,3082.6,3082.5,0.7542962]
[1644916993804,0.00530051,3082.6,3082.5,0.7542962]
[1644916994103,0.00530051,3082.6,3082.5,1.36342458]
[1644916994104,5.1e-07,3082.6,3082.5,1.36342458]
[1644916995611,2.6816,3083.6,3082.6,7.0]
[1644916995612,0.467,3083.6,3082.6,7.0]
[1644916995809,1.00379408,3084.0,3082.6,7.0]
[1644916995810,0.44564672,3084.5,3083.5,0.01290611]
[1644916996008,2.57162831,3085.0,3083.7,0.81061]
[1644916996009,0.44564672,3084.7,3083.7,0.81061]
[1644916996256,1.32395131,3085.0,3083.7,0.7295459]
[1644916996456,0.82395131,3085.0,3083.7,0.7295459]
[1644916996661,2.03985131,3085.1,3084.4,0.90441633]
[1644916996862,0.82395131,3085.2,3084.4,0.90441633]
[1644916997059,0.82395131,3085.2,3084.5,0.81047]
[1644916997460,0.82395131,3085.2,3084.7,0.7294024]
[1644916997858,0.82395131,3085.2,3084.4,0.90441633]
[1644916998059,0.82395131,3085.2,3084.3,1.62094]
[1644916998260,0.81058,3085.2,3083.8,2.22875729]
[1644916998459,0.81058,3085.2,3083.8,1.163]
[1644916998460,0.82395131,3084.9,3083.8,1.163]
[1644916999261,0.82395131,3084.8,3083.8,2.16298011]
[1644916999462,0.82395131,3084.9,3083.8,0.99998011]
[1644916999661,0.81077,3084.7,3083.8,0.99998011]
[1644916999860,0.00455057,3084.5,3083.8,0.99998011]
[1644917000102,0.00455057,3084.5,3083.8,1.81074011]
[1644917000902,1.62153,3084.7,3083.8,1.81074011]
[1644917001102,1.62153,3084.7,3083.8,0.99998011]
[1644917001103,0.00455057,3084.3,3083.8,0.99998011]
[1644917001305,0.81081,3084.2,3083.8,0.99998011]
[1644917002506,0.81536057,3084.2,3083.7,1.62136]
[1644917003305,0.81081,3084.2,3083.7,1.62136]
[1644917003507,0.8153605,3084.2,3083.7,1.62136]
[1644917003953,0.8153605,3084.2,3083.8,1.04319791]
[1644917004350,0.8153605,3084.2,3083.8,1.85399791]
[1644917004552,0.8153605,3084.2,3083.8,1.848939]
[1644917004553,0.81081,3084.2,3083.8,1.848939]
[1644917004952,0.81536057,3084.2,3083.8,1.848939]
[1644917005654,0.81081,3084.2,3083.8,1.848939]
[1644917006056,0.81536057,3084.2,3083.8,1.848939]
[1644917007061,0.81536057,3084.2,3083.4,1.62153]
[1644917007259,0.81536057,3084.2,3083.3,0.00906517]
[1644917007260,0.01260613,3083.6,3083.3,0.00906517]
[1644917007510,0.81114,3083.5,3083.3,0.00906517]
[1644917008111,0.81114,3083.5,3083.0,0.8111]
[1644917008508,0.8111723,3083.4,3083.0,0.8111]
[1644917008715,0.81117,3083.3,3082.5,0.08162187]
[1644917008910,0.467,3083.2,3082.5,0.08162187]
[1644917009109,20.588464,3083.2,3082.5,0.08162187]
[1644917009309,1.0,3083.1,3082.5,0.08162187]
[1644917009611,0.8111819,3082.9,3082.5,0.08162187]
[1644917009811,3.65250165,3082.8,3082.5,0.08162187]
[1644917010109,1.467,3082.9,3082.5,0.08162187]
[1644917010610,0.467,3082.9,3082.5,0.08162187]
[1644917010813,1.0,3083.3,3082.9,0.47018103]
[1644917011106,0.47797385,3083.4,3082.9,0.47018103]
[1644917011959,4.01928286,3083.4,3083.0,0.00970245]
[1644917012161,0.81102,3083.3,3083.0,0.00970245]
[1644917012358,1.81102,3083.3,3083.0,0.00970245]
[1644917012856,1.81102,3083.3,3082.9,0.47018103]
[1644917013057,3.52774599,3083.2,3082.9,0.47018103]
[1644917013257,0.81114,3083.1,3083.0,0.00970245]
[1644917014058,0.81114,3083.1,3082.9,0.47018103]
[1644917014457,0.81114,3083.1,3082.9,0.47988375]
[1644917015603,0.81114,3083.1,3082.9,0.47018103]
[1644917015803,0.67930126,3083.0,3082.9,0.47018103]
[1644917016406,1.81104,3083.3,3082.9,0.47018103]
[1644917016606,0.67924233,3083.2,3082.9,0.47018103]
[1644917017808,1.49030233,3083.2,3082.9,0.47018103]
[1644917018007,1.49030233,3083.2,3082.9,0.4799063]
[1644917018008,0.67924233,3083.1,3082.9,0.4799063]
[1644917018407,0.129904,3083.5,3082.9,0.4799063]
[1644917018607,0.67945762,3083.4,3083.0,0.68981737]
[1644917019251,0.67945762,3083.4,3083.0,0.69954223]
[1644917019451,0.67945762,3083.4,3083.1,0.68981737]
[1644917020451,1.49045762,3083.4,3083.1,0.00972473]
[1644917020651,0.67945762,3083.3,3083.1,0.00972473]
[1644917021358,0.67945762,3083.3,3082.9,0.47018103]
[1644917021554,0.67945762,3083.2,3083.0,0.69985343]
[1644917021755,0.81105,3083.2,3083.1,0.69012857]
[1644917021955,1.49067509,3083.2,3083.1,0.69012857]
[1644917022807,1.49067509,3083.2,3083.0,0.69985357]
[1644917023007,0.67962509,3083.1,3083.0,0.009725]
[1644917023408,0.67962509,3083.1,3083.0,0.70014506]
[1644917023809,0.67962509,3083.1,3083.0,0.69042006]
[1644917024210,0.67962509,3083.3,3083.0,0.69042006]
[1644917025310,0.67962509,3083.3,3083.0,0.70014506]
[1644917025510,0.67962509,3083.3,3083.1,0.69042006]
[1644917026110,0.67962509,3083.3,3083.1,0.64042006]
[1644917026356,1.49063509,3083.3,3083.0,0.00943405]
[1644917026558,0.81101,3083.3,3083.0,0.00943405]
[1644917027256,0.81101,3083.3,3082.9,0.47018103]
[1644917027861,0.81101,3083.3,3083.0,0.00943419]
[1644917028457,0.81101,3083.3,3082.9,0.47018103]
[1644917028856,0.81101,3083.3,3083.0,0.00943419]
[1644917029857,0.81101,3083.3,3082.9,0.47018103]
[1644917030105,0.81101,3083.3,3083.0,0.00943419]
[1644917031007,0.81101,3083.3,3082.9,0.47018103]
[1644917031210,0.81101,3083.3,3083.0,0.00948511]
[1644917032208,0.81101,3083.3,3082.9,0.47018103]
[1644917032408,0.81101,3083.3,3083.0,0.00948511]
[1644917033309,0.81101,3083.3,3082.9,0.47018103]
[1644917033511,0.81101,3083.3,3083.0,0.00948511]
[1644917034560,0.81101,3083.3,3082.9,0.47018103]
[1644917034763,0.81101,3083.3,3083.0,0.00947371]
[1644917036863,0.81101,3083.3,3082.9,0.47018103]
[1644917037263,0.81101,3083.3,3083.0,0.00947371]
[1644917038111,0.81101,3083.3,3082.9,0.47018103]
[1644917038309,0.81101,3083.3,3083.0,0.00947626]
[1644917039510,0.81101,3083.3,3082.9,0.47018103]
[1644917040810,0.81101,3083.3,3082.9,0.47932925]
[1644917041655,0.81101,3083.3,3082.9,0.47018103]
[1644917041855,4.31500543,3083.3,3082.9,0.47018103]
[1644917042057,0.81101,3083.3,3082.9,0.47950292]
[1644917042856,0.81101,3083.3,3082.9,0.47018103]
[1644917043262,4.11101,3083.3,3082.9,0.47950292]
[1644917044060,4.11101,3083.3,3082.9,0.47018103]
[1644917044360,4.11101,3083.3,3082.9,0.47917071]
[1644917045405,4.11101,3083.3,3082.9,0.47018103]
[1644917045607,4.11101,3083.3,3082.9,0.4789576]
[1644917046209,0.68050441,3083.2,3083.0,0.69315781]
[1644917046407,0.8111,3083.1,3083.0,0.69315781]
[1644917046606,1.49160441,3083.1,3083.0,0.69315781]
[1644917048611,1.49160441,3083.1,3082.9,0.47894516]
[1644917048853,1.49160441,3083.0,3082.9,0.47894516]
[1644917049054,1.49160441,3083.0,3082.9,0.47018103]
[1644917049254,1.49160441,3083.0,3082.9,1.16497981]
[1644917051661,1.49160441,3083.0,3082.9,0.47018103]
[1644917051860,1.49160441,3083.0,3082.9,1.15370916]
[1644917052061,1.49160441,3083.0,3082.9,0.47018103]
[1644917052704,1.49160441,3083.0,3082.9,1.15370097]
[1644917052906,1.49160441,3083.0,3082.9,0.47018103]
[1644917054007,1.49160441,3083.0,3082.9,1.15363898]
[1644917055614,1.49160441,3083.0,3082.9,1.15363454]
[1644917057684,3.49160441,3083.0,3082.9,1.15363454]
[1644917065457,3.49160441,3083.0,3082.9,0.46926412]
[1644917065458,6.88587074,3083.0,3082.9,0.46926412]
[1644917065662,3.49160441,3083.0,3082.9,0.46926412]
[1644917065860,6.88185681,3083.0,3082.9,0.46926412]
[1644917066060,6.89159662,3083.0,3082.9,1.15255558]
[1644917066259,8.56476222,3083.0,3082.9,1.15254883]
[1644917066458,8.41603684,3083.0,3082.9,0.46926412]
[1644917066661,8.41603684,3083.0,3082.9,1.13604844]
[1644917066857,8.41603684,3083.0,3082.9,0.46926412]
[1644917067260,8.41603684,3083.0,3082.9,1.13432922]
[1644917067508,8.41603684,3083.0,3082.9,1.13433017]
[1644917067714,8.41603684,3083.0,3082.9,0.46926412]
[1644917068310,8.41603684,3083.0,3082.9,0.35115894]
[1644917069714,9.03421377,3083.0,3082.9,0.35115894]
[1644917070714,8.41603684,3083.0,3082.9,0.35115894]
[1644917071114,9.03428365,3083.0,3082.9,0.35115894]
[1644917071557,9.03428365,3083.0,3082.9,1.01326082]
[1644917071756,9.03428365,3083.0,3082.9,0.35115894]
[1644917071757,8.41603684,3083.0,3082.9,0.35115894]
[1644917072960,9.03403732,3083.0,3082.9,0.35115894]
[1644917073359,4.95860441,3083.0,3082.9,0.35115894]
[1644917073559,4.95860441,3083.0,3082.9,1.01291853]
[1644917074564,8.36199908,3083.0,3082.9,1.01291853]
[1644917074764,4.95860441,3083.0,3082.9,1.01291853]
[1644917076622,4.49160441,3083.0,3082.9,1.01291853]
[1644917077419,4.49040872,3083.0,3082.9,1.01291853]
[1644917077621,2.67930872,3083.0,3082.9,1.01291853]
[1644917077826,2.67930872,3083.0,3082.9,1.61291853]
[1644917078862,2.67930872,3083.0,3082.9,2.67857375]
[1644917079666,2.6756286,3083.0,3082.9,2.67857375]
[1644917080164,2.0,3083.0,3082.9,2.67857375]
[1644917082066,2.0,3083.0,3082.9,2.37857375]
[1644917083711,2.0,3083.0,3082.9,2.07857375]
[1644917084312,2.0,3083.0,3082.9,1.01291853]
[1644917084714,2.0,3083.0,3082.9,1.31291853]
[1644917085515,2.0,3083.0,3082.9,2.18561333]
[1644917087156,2.0,3083.0,3082.9,1.83445439]
[1644917087757,2.0,3083.0,3082.9,1.53445439]
[1644917087957,0.52843989,3083.0,3082.9,1.53445439]
[1644917088764,0.52843989,3083.0,3082.9,2.13445439]
[1644917088960,3.3,3083.3,3083.0,7.0]
[1644917089159,3.3,3083.3,3083.0,7.8108]
[1644917089461,3.3,3083.3,3083.1,0.81077]
[1644917089659,3.3,3083.3,3083.1,1.11077]
[1644917089860,3.3,3083.3,3083.1,1.92154]
[1644917090115,3.3,3083.3,3083.1,2.537909]
[1644917090314,3.3,3083.3,3083.1,1.92154]
[1644917090714,3.3,3083.3,3083.1,2.6512386]
[1644917090910,3.3,3083.3,3083.2,0.3]
[1644917092908,3.3,3083.3,3083.2,0.6]
[1644917094064,3.3,3083.3,3083.1,1.54980918]
[1644917094264,3.3,3083.3,3083.1,0.73888918]
[1644917094661,3.3,3083.3,3083.1,0.7296986]
[1644917094864,3.3,3083.3,3083.2,0.6]
[1644917098310,0.00283758,3084.1,3083.2,7.6]
[1644917098512,0.00283758,3084.1,3083.6,0.81064]
[1644917098712,0.00453056,3084.2,3083.6,0.81064]
[1644917098911,0.00453056,3084.2,3083.6,1.41064]
[1644917099110,0.00453056,3084.2,3083.6,0.6]
[1644917099311,0.00283758,3084.5,3083.5,0.96705905]
[1644917099511,0.00283758,3084.5,3084.4,1.1753236]
[1644917099712,7.018,3084.6,3084.4,1.1753236]
[1644917099713,0.00283758,3084.6,3084.4,1.1753236]
[1644917099913,1.37425014,3084.7,3084.4,1.1753236]
[1644917100114,0.75341208,3084.6,3084.4,1.1753236]
[1644917100313,0.75341208,3084.6,3084.4,1.4753236]
[1644917100520,0.00283758,3084.7,3084.5,0.617027]
[1644917100716,0.75649559,3084.8,3084.6,0.3]
[1644917100914,0.00283758,3084.8,3084.7,0.7293295]
[1644917101111,0.00283758,3084.8,3084.7,1.64632976]
[1644917101370,0.75650912,3085.2,3084.7,5.14505658]
[1644917101580,0.75367154,3085.1,3084.8,1.42595867]
[1644917101767,0.00283758,3085.0,3084.9,0.6]
[1644917101965,0.61800048,3085.9,3085.0,7.0]
[1644917102166,0.82395131,3086.2,3085.0,7.0]
[1644917102167,0.00452033,3085.1,3085.0,7.0]
[1644917102565,0.00452033,3085.1,3085.0,11.68910365]
[1644917102964,0.61800048,3086.0,3085.2,0.729197]
[1644917103170,0.61800048,3086.0,3085.8,0.87302757]
[1644917103365,1.36954266,3086.0,3085.8,0.6]
[1644917103567,1.36954266,3085.9,3085.8,0.6]
[1644917103766,1.36954266,3085.9,3085.4,1.41023]
[1644917103966,0.82395131,3086.1,3085.4,1.41023]
[1644917103967,1.36954266,3085.8,3085.4,1.41023]
[1644917104167,0.75154218,3085.7,3085.4,1.41023]
[1644917104367,0.75154218,3085.9,3085.5,1.02128303]
[1644917104566,0.75154218,3085.6,3085.5,1.02128303]
[1644917104768,0.75154218,3085.6,3085.5,2.94172303]
[1644917105010,0.75154218,3085.6,3085.5,3.24172303]
[1644917105816,0.75154218,3085.6,3085.5,2.94172303]
[1644917106015,0.75154218,3085.6,3085.5,1.02128303]
[1644917107815,0.75154218,3085.6,3085.3,1.09032508]
[1644917108014,0.75154218,3085.5,3085.3,1.39032508]
[1644917108217,3.3,3085.6,3085.4,0.9438608]
[1644917108420,0.70898646,3085.5,3085.4,0.9438608]
[1644917108858,0.70898646,3085.5,3085.2,1.62061]
[1644917109063,0.70898646,3085.5,3084.2,0.25]
[1644917109064,2.20630136,3085.2,3084.2,0.25]
[1644917109261,2.20630136,3085.2,3084.1,0.8107]
[1644917109262,0.70898646,3085.1,3084.1,0.8107]
[1644917109663,0.70898646,3085.1,3084.1,1.62137]
[1644917109664,1.70898646,3085.1,3084.1,1.62137]
[1644917109860,0.70898646,3085.0,3084.1,2.73998738]
[1644917110160,0.70898646,3085.0,3084.1,1.92931738]
[1644917110161,1.51962646,3085.0,3084.1,1.92931738]
[1644917110463,0.00452033,3084.7,3084.1,1.92931738]
[1644917110664,0.00452033,3084.7,3084.1,2.65878678]
[1644917110863,0.00452033,3084.7,3084.1,1.11861738]
[1644917111065,0.81512033,3084.7,3084.1,1.11861738]
[1644917111266,0.81512033,3084.7,3084.1,1.71861738]
[1644917111462,0.8106,3084.7,3084.1,1.71861738]
[1644917111663,0.71754261,3084.6,3084.2,0.81055]
[1644917111866,0.00452033,3084.6,3084.2,0.81055]
[1644917112064,0.00452033,3084.6,3084.3,0.3]
[1644917112708,1.62126,3084.9,3084.3,0.3]
[1644917112910,0.81064,3084.5,3084.3,0.3]
[1644917113107,0.81064,3084.5,3084.1,1.41861738]
[1644917113108,0.81064,3084.5,3084.1,1.11861738]
[1644917113308,0.81064,3084.5,3084.1,1.41861738]
[1644917113610,0.00452033,3084.6,3084.1,1.41861738]
[1644917113809,3.78045641,3085.0,3084.1,1.71861738]
[1644917114009,0.71333047,3084.9,3084.1,1.71861738]
[1644917114214,0.00452033,3084.5,3083.4,0.25]
[1644917114410,25.83479447,3084.4,3083.3,0.00933426]
[1644917114610,1.18033047,3084.3,3083.3,0.00933426]
[1644917114909,1.52431047,3084.2,3083.3,0.00933426]
[1644917115111,1.18033047,3084.1,3083.6,0.97344269]
[1644917115309,0.8109,3083.9,3083.6,0.97344269]
[1644917115708,0.47152004,3084.2,3083.6,0.97344269]
[1644917115912,0.72119398,3084.1,3083.6,0.97344269]
[1644917116359,0.81078,3084.1,3083.6,1.57344269]
[1644917116563,0.81078,3084.1,3083.3,2.3513048]
[1644917116565,0.81078,3084.1,3083.4,0.81083]
[1644917116761,0.7209362,3084.0,3083.3,0.00969357]
[1644917117161,0.7209362,3083.9,3083.3,0.00969357]
[1644917117460,3.67545716,3084.2,3082.7,1.62167]
[1644917117461,3.48625654,3083.8,3083.2,1.62163]
[1644917117665,0.72157607,3083.7,3083.3,0.00969346]
[1644917118667,0.72157607,3083.7,3082.7,0.96357378]
[1644917118862,0.72157607,3083.7,3083.3,0.00969285]
[1644917119262,4.02157607,3083.7,3083.3,0.00969285]
[1644917119461,1.72157607,3083.6,3083.3,0.00969285]
[1644917119662,0.72157607,3083.5,3083.3,0.00969285]
[1644917119863,3.4977154,3083.4,3083.1,0.81099]
[1644917120115,6.19142105,3083.6,3083.3,0.00969298]
[1644917120316,2.62194,3083.6,3083.3,0.00969298]
[1644917121115,2.62194,3083.6,3083.2,0.87588006]
[1644917121320,2.62194,3083.6,3083.3,0.00969298]
[1644917121520,0.72573958,3083.5,3083.3,0.00969298]
[1644917121716,2.62194,3083.6,3083.3,0.30969298]
[1644917122216,2.62194,3083.6,3083.2,1.17588006]
[1644917122423,0.72588499,3083.5,3082.9,0.3]
[1644917122619,0.81104,3083.4,3083.3,0.00970165]
[1644917123419,0.81104,3083.4,3082.9,0.3]
[1644917123619,0.81104,3083.4,3083.2,0.00970192]
[1644917124165,1.0,3083.6,3083.2,0.00970192]
[1644917124365,1.0,3083.6,3083.3,0.64095323]
[1644917124973,3.3,3083.7,3083.3,1.08793483]
[1644917125165,3.767,3083.7,3083.3,1.08793483]
[1644917125366,3.767,3083.7,3083.3,2.19881483]
[1644917125566,3.767,3083.7,3083.4,0.64103477]
[1644917125767,3.767,3083.7,3083.3,1.38793483]
[1644917125968,3.3,3083.7,3083.3,1.38793483]
[1644917126169,3.3,3083.7,3083.3,1.39745446]
[1644917126372,3.3,3083.7,3083.4,0.81087]
[1644917126668,3.3,3083.7,3083.3,1.39745446]
[1644917126869,3.3,3083.7,3083.4,0.64097379]
[1644917127512,3.3,3083.7,3083.4,1.45180379]
[1644917127711,3.3,3083.7,3083.5,0.64097379]
[1644917129715,3.3,3083.7,3083.5,2.99217719]
[1644917129914,3.3,3083.7,3083.6,0.64097379]
[1644917130114,1.82899855,3083.7,3083.6,1.24097379]
[1644917132357,1.73682305,3083.7,3083.6,1.24097379]
[1644917133959,1.73682305,3083.7,3083.6,4.52128379]
[1644917134260,1.73498341,3083.7,3083.6,0.94097379]
[1644917139277,2.48964152,3083.7,3083.6,0.3]
[1644917139477,3.30059152,3083.7,3083.3,0.30904313]
[1644917139674,0.75465811,3083.6,3083.4,0.61375125]
[1644917139873,0.75465811,3083.6,3083.3,0.30904313]
[1644917140074,0.75465811,3083.6,3083.3,0.00904313]
[1644917140377,2.37666811,3083.6,3082.9,0.81102]
[1644917140573,1.73498341,3083.7,3083.3,0.00904325]
[1644917140775,1.73498341,3083.7,3083.4,0.61379771]
[1644917141377,1.73498341,3083.7,3083.3,0.00904325]
[1644917141575,1.73498341,3083.7,3083.4,1.34348119]
[1644917141773,1.73498341,3083.7,3083.5,0.61374949]
[1644917141973,1.73498341,3083.7,3083.5,1.42458949]
[1644917142177,1.73498341,3083.7,3083.5,0.81084]
[1644917142613,0.7547443,3083.6,3083.5,0.81084]
[1644917142807,0.7547443,3083.6,3083.5,1.42456862]
[1644917143009,1.73498341,3083.7,3083.5,1.42456862]
[1644917143208,0.7550135,3083.6,3083.3,1.63067318]
[1644917143407,0.7550135,3083.6,3083.4,0.9136681]
[1644917143609,0.7550135,3083.6,3083.3,0.00904318]
[1644917143810,2.54585341,3083.7,3083.4,0.6136606]
[1644917144209,2.54585341,3083.7,3083.5,0.6136606]
[1644917144410,2.54585341,3083.7,3083.3,0.00902914]
[1644917144612,1.73498341,3083.7,3083.6,1.03346093]
[1644917144813,2.49026025,3083.7,3083.6,1.03346093]
[1644917146357,2.49026025,3083.7,3083.4,0.81093]
[1644917146560,0.75527684,3083.6,3083.5,0.61389843]
[1644917146757,1.56618684,3083.6,3083.5,0.61389843]
[1644917148259,1.56618684,3083.6,3083.3,0.00902894]
[1644917148458,0.81106,3083.4,3083.3,0.00902894]
[1644917148658,1.56633684,3083.4,3083.3,0.00902894]
[1644917148859,2.03333684,3083.4,3082.7,0.3]
[1644917149057,2.03333684,3083.4,3083.3,0.00902903]
[1644917149058,1.27806,3083.4,3083.3,0.00902903]
[1644917149258,2.05586724,3083.4,3083.3,0.00902903]
[1644917149860,2.05586724,3083.4,3082.7,1.23935238]
[1644917150112,0.81101,3083.2,3082.8,0.59297262]
[1644917150312,1.62204,3083.3,3082.8,0.59297262]
[1644917150518,0.77786365,3083.2,3082.8,0.59297262]
[1644917150720,0.34795238,3082.8,3082.6,0.01819782]
[1644917150913,7.9844,3083.6,3083.0,1.47141485]
[1644917151210,0.8109036,3083.2,3083.0,1.47141485]
[1644917151714,1.1109036,3083.2,3083.0,1.47141485]
[1644917152410,2.7327836,3083.2,3083.0,1.47141485]
[1644917152911,2.4327836,3083.2,3083.0,1.47141485]
[1644917153612,5.7327836,3083.2,3083.0,1.47141485]
[1644917154860,4.9218136,3083.2,3083.0,1.47141485]
[1644917156462,5.7327893,3083.2,3083.0,1.47141485]
[1644917157914,5.8626923,3083.2,3083.0,1.47141485]
[1644917158312,6.5437593,3083.2,3083.0,1.47141485]
[1644917161861,6.6736553,3083.2,3083.0,1.47141485]
[1644917163162,5.8626853,3083.2,3083.0,1.47141485]
[1644917163363,5.0517753,3083.2,3083.0,1.47141485]
[1644917164465,6.6737053,3083.2,3083.0,1.47141485]
[1644917165921,0.811,3083.1,3083.0,1.47141485]
[1644917170672,1.60510561,3083.1,3083.0,2.05024446]